Cogmind - Beta 17 @@@ ROGUE MODE // 2026.08.22 @ 23:01:17 Player: Petvaria Result: Destroyed by H-88 Terminator with KE Penetrator Performance ------------- Evolutions (9) 4500 Regions Visited (16) 3200 Robots Destroyed (27) 135 Value Destroyed (693) 693 Prototype IDs (27) 540 Alien Tech Used (0) 0 Bonus (1414) 1414 TOTAL SCORE: 10482 Bonus ------- Follower Combat Kills 114 Entered DSFs 1000 Aligned with FarCom 300 Cogmind --------- Core Integrity 0/1600 Matter 83/300 Energy 98/100 System Corruption 6% Temperature Cool (0) Movement Core (50) Location -1/Access Parts ------- > --- POWER (1) -------- (None) > --- PROPULSION (2) --- (None) > --- UTILITY (20) ----- Machine Analyzer Advanced Visual Processing Unit Advanced Launcher Guidance Computer Core Analyzer Hacking Suite > --- WEAPON (2) ------- (None) > --- INVENTORY (5) ---- Nova Cannon Makeshift Axe Plasma Sword Peak State ------------ > --- POWER ------------ Improved Ion Engine > --- PROPULSION ------- (None) > --- UTILITY ---------- Advanced Weight Redist. System Machine Analyzer Advanced Visual Processing Unit Advanced Signal Interpreter Advanced Terrain Scanner Advanced Terrain Scan Processor Advanced Targeting Computer Advanced Launcher Guidance Computer Core Analyzer Hacking Suite Hacking Suite Hacking Suite Improved Hacking Suite System Shield System Shield System Shield > --- WEAPON ----------- Nova Cannon Makeshift Axe > --- INVENTORY -------- Improved Sensor Array Supersonic Drone Bay Neutron Missile Launcher Plasma Sword [Rating: 77] Favorites ----------- Power Improved Ion Engine Engine Improved Ion Engine Propulsion None Utility Hacking Suite Device Advanced Weight Redist. System Processor Advanced Terrain Scan Processor Hackware Hacking Suite Weapon Makeshift Axe Energy Gun Small Laser Energy Cannon Heavy Particle Cannon Ballistic Gun Light Assault Rifle Launcher Neutron Missile Launcher Slashing Weapon Makeshift Axe Build | -11 -10 -10 -10 -9 -8 -7 -7 -7 -7 -5 -5 -4 -3 -2 -2 -1 ------- Run | Yrd Mat Min Exi Min Mat Fac Sto Rec Scr Fac DSF Fac Res Res DSF Acc Slots Evolved 18 | . . . . . 4 2 . . . 4 . 2 2 2 . 2 Power . | . . . . . . . . . . . . . . . . . Propulsion . | . . . . . . . . . . . . . . . . . Utility 18 | . . . . . 4 2 . . . 4 . 2 2 2 . 2 Weapon . | . . . . . . . . . . . . . . . . . Parts Attached 44 | 2 1 . . . 6 10 2 3 3 2 . 7 5 . . 3 Power 4 | . . . . . 2 . . 1 1 . . . . . . . Engine 4 | . . . . . 2 . . 1 1 . . . . . . . Core . | . . . . . . . . . . . . . . . . . Reactor . | . . . . . . . . . . . . . . . . . Propulsion . | . . . . . . . . . . . . . . . . . Treads . | . . . . . . . . . . . . . . . . . Leg . | . . . . . . . . . . . . . . . . . Wheel . | . . . . . . . . . . . . . . . . . Hover . | . . . . . . . . . . . . . . . . . Flight . | . . . . . . . . . . . . . . . . . Utility 27 | . . . . . 2 8 2 1 1 2 . 6 3 . . 2 Device 9 | . . . . . 2 1 2 . . 1 . 2 . . . 1 Storage . | . . . . . . . . . . . . . . . . . Processor 11 | . . . . . . 4 . 1 1 . . 2 2 . . 1 Hackware 7 | . . . . . . 3 . . . 1 . 2 1 . . . Protection . | . . . . . . . . . . . . . . . . . Artifact . | . . . . . . . . . . . . . . . . . Weapon 13 | 2 1 . . . 2 2 . 1 1 . . 1 2 . . 1 Energy Gun 2 | 1 1 . . . . . . . . . . . . . . . Energy Cannon 3 | . . . . . 1 1 . . . . . . 1 . . . Ballistic Gun 2 | 1 . . . . 1 . . . . . . . . . . . Ballistic Cannon . | . . . . . . . . . . . . . . . . . Launcher 1 | . . . . . . . . . . . . 1 . . . . Special Weapon . | . . . . . . . . . . . . . . . . . Impact Weapon . | . . . . . . . . . . . . . . . . . Slashing Weapon 5 | . . . . . . 1 . 1 1 . . . 1 . . 1 Piercing Weapon . | . . . . . . . . . . . . . . . . . Special Melee Weapon . | . . . . . . . . . . . . . . . . . Unidentified Prototypes 4 | . . . . . . . . . . 1 . 2 1 . . . Parts Lost 21 | . 1 1 . . 1 . 4 . . . . 1 . . 2 11 Power 2 | . . . . . . . 1 . . . . . . . 1 . Propulsion . | . . . . . . . . . . . . . . . . . Utility 14 | . . . . . . . 3 . . . . . . . 1 10 Weapon 5 | . 1 1 . . 1 . . . . . . 1 . . . 1 Highest Loss Streak 5 | . 1 1 . . 1 . 2 . . . . 1 . . 2 5 To Critical Strikes . | . . . . . . . . . . . . . . . . . Average Backups 4 | . 1 . . 1 3 4 4 4 5 5 5 4 4 5 5 3 Power . | . . . . . . . . . . . . . . . . . Propulsion . | . . . . . . . . . . . . . . . . . Utility 1 | . . . . 1 3 2 2 2 2 2 2 2 2 2 1 . Weapon 2 | . 1 . . . . 1 2 2 3 3 3 2 2 3 3 3 Tool/Special . | . . . . . . . . . . . . . . . . . Unused Backups 4 | . . . . . . 1 . . . . . 1 1 . 1 . Power . | . . . . . . . . . . . . . . . . . Propulsion . | . . . . . . . . . . . . . . . . . Utility 1 | . . . . . . . . . . . . . . . 1 . Weapon 2 | . . . . . . . . . . . . 1 1 . . . Tool/Special 1 | . . . . . . 1 . . . . . . . . . . Average Slot Usage (%) 57 | . 28 26 14 14 16 51 62 65 76 60 64 72 82 78 74 48 Engine 3 | . . . . . 3 7 1 1 7 5 5 5 4 4 2 . Device 6 | . . . . . 3 10 7 7 7 5 5 10 11 8 8 3 Processor 19 | . . . . . . 6 23 24 30 23 23 25 29 30 30 28 Hackware 18 | . . . . . . 17 23 23 23 19 23 26 30 30 28 16 Energy Gun 2 | . 14 14 14 14 5 . . . . . . . . . . . Ballistic Gun 1 | . 14 12 . . 4 . . . . . . . . . . . Slashing Weapon 3 | . . . . . . 2 7 7 7 5 5 5 4 4 3 . Peak Build Rating 77 | 2 2 2 1 2 12 37 32 38 35 40 38 59 77 70 70 72 Average Rating 35 | 1 1 1 1 1 4 22 27 29 34 35 38 49 66 70 67 49 On Entrance 28 | . 2 2 1 1 2 10 32 27 35 33 38 38 59 70 70 61 Avg Prop Armor Cover (%) . | . . . . . . . . . . . . . . . . . Naked Turns . | . . . . . . . . . . . . . . . . . Heaviest Build 23 | 3 3 2 1 1 11 12 8 17 10 10 10 12 23 11 11 11 Greatest Support 12 | 3 3 3 3 3 12 12 12 12 12 12 12 12 12 12 12 3 Greatest Overweight (x) 3 | . . . . . 1 . . 2 . . . . 1 . 1 3 Average Overweight (x) . | . . . . . . . . . . . . . . . . . Largest Inventory Capacity 5 | 5 5 5 5 5 5 5 5 5 5 5 5 5 5 5 5 5 Average Capacity 5 | 5 5 5 5 5 5 5 5 5 5 5 5 5 5 5 5 5 Most Carried 5 | 2 1 . 1 2 5 5 5 5 5 5 5 5 5 5 5 5 Average Carried 4 | . . . . 1 3 4 4 4 5 5 5 4 4 5 5 3 Final Capacity 5 | 5 5 5 5 5 5 5 5 5 5 5 5 5 5 5 5 5 Final Carried 5 | 1 . . 1 2 5 4 5 5 5 5 5 5 5 5 5 3 Class Distribution -------------------- 28% | Wizard-Scout 23% | Hacker-Mutant 22% | Mutant 21% | Hacker-Scout 3% | Scout Dominant Class ---------------- Mutant | -10/Materials Mutant | -10/Mines Mutant | -10/Exiles Mutant | -9/Mines Mutant | -8/Materials Hacker-Scout | -7/Factory Hacker-Mutant | -7/Storage Hacker-Mutant | -7/Recycling Hacker-Mutant | -7/Scraptown Hacker-Scout | -5/Factory Hacker-Scout | -5/DSF Wizard-Scout | -4/Factory Wizard-Scout | -3/Research Wizard-Scout | -2/Research Wizard-Scout | -2/DSF Hacker-Scout | -1/Access Resources | -11 -10 -10 -10 -9 -8 -7 -7 -7 -7 -5 -5 -4 -3 -2 -2 -1 ----------- Run | Yrd Mat Min Exi Min Mat Fac Sto Rec Scr Fac DSF Fac Res Res DSF Acc Matter Collected 721 | 220 13 . . . 106 33 . 123 70 . . 43 113 . . . Remotely . | . . . . . . . . . . . . . . . . . Salvage Created 1262 | . 40 . . 36 201 33 47 354 . . . 131 249 . . 171 Parts 69 | . 3 . . 2 15 6 3 8 . . . 7 13 . . 12 Haulers Intercepted 4 | . . . . . 1 . 1 . . . . 1 1 . . . Recyclers Shooed 2 | . . . . . . 1 . 1 . . . . . . . . Parts Field Recycled . | . . . . . . . . . . . . . . . . . Retrieved Matter . | . . . . . . . . . . . . . . . . . Parts Self-Destructed . | . . . . . . . . . . . . . . . . . Prevented . | . . . . . . . . . . . . . . . . . Parts Restored . | . . . . . . . . . . . . . . . . . Kills | -11 -10 -10 -10 -9 -8 -7 -7 -7 -7 -5 -5 -4 -3 -2 -2 -1 ------- Run | Yrd Mat Min Exi Min Mat Fac Sto Rec Scr Fac DSF Fac Res Res DSF Acc Combat Hostiles Destroyed 13 | . 3 . . 3 2 . . . . . . . 2 . . 3 Guns 8 | . 3 . . 3 2 . . . . . . . . . . . Cannons 4 | . . . . . . . . . . . . . 2 . . 2 AOE 1 | . . . . . . . . . . . . . . . . 1 Classes Destroyed 8 | . 1 . . . 4 1 . 1 . . . . 1 . . . Worker 4 | . . . . . 1 1 . . . . . 2 . . . . Tunneler 1 | . . . . . 1 . . . . . . . . . . . Hauler 4 | . . . . . 1 . 1 . . . . 1 1 . . . Recycler 4 | . . . . . . . . 4 . . . . . . . . Operator 1 | . . . . . . 1 . . . . . . . . . . Swarmer 6 | . 3 . . 3 . . . . . . . . . . . . Sentry 2 | . . . . . 2 . . . . . . . . . . . Programmer 5 | . . . . . . . . . . . . . 2 . . 3 Best Kill Streak 3 | . 3 . . 3 2 1 1 2 . . . 2 3 . . 2 Combat Bots Only 3 | . 3 . . 3 2 . . . . . . . 2 . . 2 Max Kills in Single Turn 1 | . 1 . . 1 1 1 1 1 . . . 1 1 . . 1 Gunslinging . | . . . . . . . . . . . . . . . . . Exploded 1 | . . . . . . . . . . . . . . . . 1 Melee . | . . . . . . . . . . . . . . . . . Uniques/NPCs Destroyed . | . . . . . . . . . . . . . . . . . Combat | -11 -10 -10 -10 -9 -8 -7 -7 -7 -7 -5 -5 -4 -3 -2 -2 -1 -------- Run | Yrd Mat Min Exi Min Mat Fac Sto Rec Scr Fac DSF Fac Res Res DSF Acc Hostile Shots Fired 359 | . 23 9 . 16 16 3 141 . . . 1 . 2 . 1 147 Missed 150 | . 6 3 . 6 6 . 71 . . . . . . . . 58 Hits 209 | . 17 6 . 10 10 3 70 . . . 1 . 2 . 1 89 Melee 4 | . . . . . . . . . . . . . . . . 4 Projectile 205 | . 17 6 . 10 10 3 70 . . . 1 . 2 . 1 85 AOE 1 | . . . . . . . . . . . . . . . . 1 Critical Strikes 9 | . . 1 . . 1 . . . . . . . . . 1 6 Part Disruptions 1 | . . . . . . . . . . . . . . . . 1 Damage Taken 3274 | . 175 72 . 76 156 49 500 . . . 65 . 39 . 91 2051 Core 2370 | . 59 21 . 15 142 13 372 . . . 65 . 21 . 53 1609 Absorbed by Shields 12 | . . . . . . . . . . . . . . . . 12 Core Remaining (%) 83 | 100 . . . 62 74 . . . 45 . 93 100 98 . 96 . Volleys Fired 73 | . 8 . . 5 21 11 . 8 . . . . 8 . . 12 Largest 2 | . 2 . . 1 2 1 . 1 . . . . 1 . . 1 Hottest 113 | . 70 . . 40 75 80 . 80 . . . . 113 . . 113 Shots Fired 84 | . 15 . . 5 25 11 . 8 . . . . 8 . . 12 Gun 43 | . 15 . . 5 23 . . . . . . . . . . . Cannon 36 | . . . . . 2 11 . 8 . . . . 8 . . 7 Launcher 5 | . . . . . . . . . . . . . . . . 5 Special . | . . . . . . . . . . . . . . . . . Kinetic 26 | . 8 . . . 18 . . . . . . . . . . . Thermal 53 | . 7 . . 5 7 11 . 8 . . . . 8 . . 7 Explosive 5 | . . . . . . . . . . . . . . . . 5 Electromagnetic . | . . . . . . . . . . . . . . . . . Robot Hit Streak 9 | . 1 . . 6 9 6 . . . . . . 2 . . 6 Robot Miss Streak 2 | . 2 . . . 1 1 . . . . . . . . . 1 Penetration Max . | . . . . . . . . . . . . . . . . . Secondary Targets 1 | . 1 . . . . . . . . . . . . . . . Max Gunslinging Chain 1 | . 1 . . . . . . . . . . . . . . . Shots Hit Robots 72 | . 6 . . 5 18 7 2 6 . . . 9 9 . . 10 Core Hits 34 | . 3 . . 3 7 3 1 3 . . . 4 4 . . 6 Critical Kills . | . . . . . . . . . . . . . . . . . Critical Parts Destroyed . | . . . . . . . . . . . . . . . . . Critical Strikes 3 | . . . . . . . . . . . . 2 1 . . . Sever 3 | . . . . . . . . . . . . 2 1 . . . Melee Attacks 93 | . . . . . . 9 5 14 . 4 . 19 32 . . 10 Impact . | . . . . . . . . . . . . . . . . . Slashing 93 | . . . . . . 9 5 14 . 4 . 19 32 . . 10 Piercing . | . . . . . . . . . . . . . . . . . Sneak Attacks 14 | . . . . . . 2 1 5 . . . 3 3 . . . Combat Hostiles . | . . . . . . . . . . . . . . . . . Follow-up Attacks . | . . . . . . . . . . . . . . . . . Damage Inflicted 2665 | . 60 . . 54 242 253 101 365 . . . 491 459 . . 640 Guns 356 | . 60 . . 54 242 . . . . . . . . . . . Cannons 415 | . . . . . . 125 . . . . . . 94 . . 196 Explosions 365 | . . . . . . . . . . . . . . . . 365 Melee 1489 | . . . . . . 128 101 365 . . . 491 365 . . 39 Ramming 40 | . . . . . . . . . . . . . . . . 40 Kinetic 220 | . 21 . . . 199 . . . . . . . . . . . Thermal 551 | . 39 . . 54 43 125 . . . . . . 94 . . 196 Explosive 365 | . . . . . . . . . . . . . . . . 365 Electromagnetic . | . . . . . . . . . . . . . . . . . Impact . | . . . . . . . . . . . . . . . . . Slashing 1489 | . . . . . . 128 101 365 . . . 491 365 . . 39 Piercing . | . . . . . . . . . . . . . . . . . Highest Corruption 6 | . . . . . . . . . . . . . 6 . . 6 Average Corruption 2 | . . . . . . . . . . . . . 1 . . 3 Corruption Purged . | . . . . . . . . . . . . . . . . . Corruption Blocked . | . . . . . . . . . . . . . . . . . Effects 8 | . . . . . . . . . . . . . 2 . . 6 Message Errors 2 | . . . . . . . . . . . . . . . . 2 Matter Fused 3 | . . . . . . . . . . . . . 2 . . 1 Energy Discharges 1 | . . . . . . . . . . . . . . . . 1 Data Loss (minor) 2 | . . . . . . . . . . . . . . . . 2 Overload Shots . | . . . . . . . . . . . . . . . . . Overflow Damage 246 | . . . . . . 20 . 63 . . . 61 59 . . 43 Projectiles . | . . . . . . . . . . . . . . . . . Explosions 43 | . . . . . . . . . . . . . . . . 43 Melee 203 | . . . . . . 20 . 63 . . . 61 59 . . . Knockbacks . | . . . . . . . . . . . . . . . . . Impact . | . . . . . . . . . . . . . . . . . Kinetic . | . . . . . . . . . . . . . . . . . Secondary . | . . . . . . . . . . . . . . . . . Self-Inflicted Damage 17 | . . . . . . . . . . . . . . . . 17 Shots . | . . . . . . . . . . . . . . . . . Rammed 8 | . . . . . . . . . . . . . . . . 8 Targets Rammed 8 | . . . . . . . . . . . . . . . . 8 Kicked . | . . . . . . . . . . . . . . . . . Crushed . | . . . . . . . . . . . . . . . . . Highest Temperature 100 | . 45 2 . . 48 100 . 54 . . . . 64 . . 76 Average Temperature 31 | . 24 2 . . 17 49 . 22 . . . . 29 . . 37 Received Heat Transfer 354 | . 9 60 . . 99 27 132 . . . . . . . . 27 Siege Activations . | . . . . . . . . . . . . . . . . . Martial Activations . | . . . . . . . . . . . . . . . . . Shielding Activations . | . . . . . . . . . . . . . . . . . Robots Disrupted . | . . . . . . . . . . . . . . . . . Combat Hostiles . | . . . . . . . . . . . . . . . . . Robots Corrupted . | . . . . . . . . . . . . . . . . . Combat Hostiles . | . . . . . . . . . . . . . . . . . Parts Fried . | . . . . . . . . . . . . . . . . . Impact Corruptions . | . . . . . . . . . . . . . . . . . Robots Melted . | . . . . . . . . . . . . . . . . . Combat Hostiles . | . . . . . . . . . . . . . . . . . Parts Melted 5 | . . . . . . 1 . . . . . . 2 . . 2 Heat Transferred 743 | . 111 . . 125 100 185 . . . . . . 74 . . 148 Parts Sabotaged . | . . . . . . . . . . . . . . . . . Parts Stolen . | . . . . . . . . . . . . . . . . . Parts Stripped . | . . . . . . . . . . . . . . . . . Power Chain Reactions . | . . . . . . . . . . . . . . . . . Alert | -11 -10 -10 -10 -9 -8 -7 -7 -7 -7 -5 -5 -4 -3 -2 -2 -1 ------- Run | Yrd Mat Min Exi Min Mat Fac Sto Rec Scr Fac DSF Fac Res Res DSF Acc Maximum Alert Level 1 | . . . . . . . . . . . . . . . . 1 Low Security (%) 96 | 100 100 100 . 100 100 100 100 100 . 100 100 100 100 100 100 73 Level 1 4 | . . . . . . . . . . . . . . . . 26 Level 2 . | . . . . . . . . . . . . . . . . . Level 3 . | . . . . . . . . . . . . . . . . . Level 4 . | . . . . . . . . . . . . . . . . . Level 5 . | . . . . . . . . . . . . . . . . . High Security . | . . . . . . . . . . . . . . . . . Max Security . | . . . . . . . . . . . . . . . . . Peak Influence 310 | . 80 71 . 70 85 58 10 16 . 4 15 15 121 36 27 310 Initial 38 | . . 31 . . 19 38 10 . . . . 7 . 36 27 12 Average 28 | . 18 39 . 39 31 35 2 1 . . 1 3 23 36 20 82 Influence Increases 1460 | . 100 60 . 70 194 106 10 46 . 8 15 63 270 . 15 503 Destroy 0b10 Robot/C 300 | . 60 . . 60 40 . . . . . . . 80 . . 60 Destroy 0b10 Robot/NC 80 | . . . . . 15 10 5 20 . . . 15 15 . . . Destroy Leader 88 | . 10 . . 10 22 . 2 . . . . 2 22 . . 20 Allied During Kill 37 | . . . . . . . . . . . . . 37 . . . Successful Hack 29 | . . . . . 9 . . . . . . . 20 . . . Disable Machine 75 | . . . . . . 30 . 15 . . . 15 15 . . . Destroy Structure 251 | . . . . . 3 6 3 11 . 8 . 16 36 . . 168 Partial Spotted 30 | . . . . . . . . . . . . 15 15 . . . Lose Combat Pursuer 570 | . 30 60 . . 105 60 . . . . 15 . 30 . 15 255 Influence Decreases 1158 | . 20 119 21 20 159 167 34 46 . 8 . 78 206 28 29 223 Entered New Map 217 | . . 49 21 . 31 47 14 . . . . 8 . 28 9 10 Time Decay 763 | . 10 60 . 20 118 120 10 46 . 8 . 70 166 . . 135 Lost Part 138 | . 10 10 . . 10 . 10 . . . . . . . 20 78 Lost Ally 40 | . . . . . . . . . . . . . 40 . . . Squads Dispatched 8 | . 2 . . . . . 1 . . . . 1 2 . . 2 Investigation 1 | . 1 . . . . . . . . . . . . . . . Extermination 4 | . . . . . . . . . . . . 1 1 . . 2 Reinforcement 2 | . 1 . . . . . 1 . . . . . . . . . Assault . | . . . . . . . . . . . . . . . . . Garrison 1 | . . . . . . . . . . . . . 1 . . . Intercept . | . . . . . . . . . . . . . . . . . Searches Triggered . | . . . . . . . . . . . . . . . . . Construction Impeded . | . . . . . . . . . . . . . . . . . Haulers Reinforced . | . . . . . . . . . . . . . . . . . Active Scanning Responses . | . . . . . . . . . . . . . . . . . Cargo Convoy Interrupts . | . . . . . . . . . . . . . . . . . Stealth | -11 -10 -10 -10 -9 -8 -7 -7 -7 -7 -5 -5 -4 -3 -2 -2 -1 --------- Run | Yrd Mat Min Exi Min Mat Fac Sto Rec Scr Fac DSF Fac Res Res DSF Acc Distress Signals 6 | . . 1 . . 1 . 1 . . . . . 1 . . 2 Communications Jammed . | . . . . . . . . . . . . . . . . . Distress Signals . | . . . . . . . . . . . . . . . . . Times Spotted 86 | . 7 6 . 5 9 9 8 . . . 2 . 7 . 2 31 Peak Tracking Total 14 | . 6 4 . 3 4 3 5 . . . 2 . 2 . 3 14 Tactical Retreats 17 | . 1 1 . . 3 2 . . . . 1 . 1 . 1 7 Traps | -11 -10 -10 -10 -9 -8 -7 -7 -7 -7 -5 -5 -4 -3 -2 -2 -1 ------- Run | Yrd Mat Min Exi Min Mat Fac Sto Rec Scr Fac DSF Fac Res Res DSF Acc Traps Triggered 12 | . 2 . . . . . . . . 1 . 2 3 . 1 3 Indirectly . | . . . . . . . . . . . . . . . . . Trap Hack Attempts . | . . . . . . . . . . . . . . . . . Triggered . | . . . . . . . . . . . . . . . . . Disarmed . | . . . . . . . . . . . . . . . . . Reprogrammed . | . . . . . . . . . . . . . . . . . Reused . | . . . . . . . . . . . . . . . . . Traps Extracted . | . . . . . . . . . . . . . . . . . Installed 9 | . . . . . . . . . . . 9 . . . . . Triggered . | . . . . . . . . . . . . . . . . . Machines | -11 -10 -10 -10 -9 -8 -7 -7 -7 -7 -5 -5 -4 -3 -2 -2 -1 ---------- Run | Yrd Mat Min Exi Min Mat Fac Sto Rec Scr Fac DSF Fac Res Res DSF Acc Machines Disabled 5 | . . . . . . 2 . 1 . . . 1 1 . . . Max in Single Turn 1 | . . . . . . 1 . 1 . . . 1 1 . . . Garrison Access 3 | . . . . . . 1 1 . . . . . 1 . . . Machines Repaired . | . . . . . . . . . . . . . . . . . Machines Dismantled . | . . . . . . . . . . . . . . . . . Machines Sabotaged . | . . . . . . . . . . . . . . . . . Overloaded Fab Kills . | . . . . . . . . . . . . . . . . . Hacking | -11 -10 -10 -10 -9 -8 -7 -7 -7 -7 -5 -5 -4 -3 -2 -2 -1 --------- Run | Yrd Mat Min Exi Min Mat Fac Sto Rec Scr Fac DSF Fac Res Res DSF Acc Machines Accessed 22 | . . . 2 . 1 2 1 . . 1 . 5 7 1 . 2 Terminals 15 | . . . . . 1 . . . . 1 . 5 5 1 . 2 Fabricators 2 | . . . . . . 1 . . . . . . 1 . . . Repair Stations . | . . . . . . . . . . . . . . . . . Recycling Units . | . . . . . . . . . . . . . . . . . Scanalyzers . | . . . . . . . . . . . . . . . . . Garrison Access 3 | . . . . . . 1 1 . . . . . 1 . . . Total Hacks 45 | . . . 2 . 1 4 1 . . 1 . 11 20 1 . 4 Successful 18 | . . . 2 . 1 1 1 . . 1 . 3 7 1 . 1 Failed 27 | . . . . . . 3 . . . . . 8 13 . . 3 Catastrophic 4 | . . . . . . 1 . . . . . 2 1 . . . Database Lockouts . | . . . . . . . . . . . . . . . . . Manual 26 | . . . 1 . 1 1 2 . . . . 3 13 . . 5 Terminals 33 | . . . . . 1 . . . . 1 . 11 15 1 . 4 Fabricators 2 | . . . . . . 1 . . . . . . 1 . . . Repair Stations . | . . . . . . . . . . . . . . . . . Recycling Units . | . . . . . . . . . . . . . . . . . Scanalyzers . | . . . . . . . . . . . . . . . . . Garrison Access 8 | . . . . . . 3 1 . . . . . 4 . . . Terminal Hacks 11 | . . . 2 . 1 . . . . 1 . 3 3 1 . . Record 1 | . . . 1 . . . . . . . . . . . . . Open DSF 4 | . . . . . . . . . . 1 . 1 1 1 . . Level Access Points 3 | . . . . . 1 . . . . . . 1 1 . . . Branch Access Points 2 | . . . . . . . . . . . . 1 1 . . . Proto ID Catalog 1 | . . . 1 . . . . . . . . . . . . . Fabricator Hacks . | . . . . . . . . . . . . . . . . . Repair Station Hacks . | . . . . . . . . . . . . . . . . . Recycling Unit Hacks . | . . . . . . . . . . . . . . . . . Scanalyzer . | . . . . . . . . . . . . . . . . . Garrison Access Hacks 3 | . . . . . . 1 1 . . . . . 1 . . . Seal Access 3 | . . . . . . 1 1 . . . . . 1 . . . Unauthorized Hacks 4 | . . . . . . . . . . . . . 3 . . 1 Terminals 3 | . . . . . . . . . . . . . 2 . . 1 Botnet 3 | . . . . . . . . . . . . . 2 . . 1 Fabricators 1 | . . . . . . . . . . . . . 1 . . . Liberate 1 | . . . . . . . . . . . . . 1 . . . Repair Stations . | . . . . . . . . . . . . . . . . . Recycling Units . | . . . . . . . . . . . . . . . . . Scanalyzers . | . . . . . . . . . . . . . . . . . Garrison Access . | . . . . . . . . . . . . . . . . . Data Cores Recovered 1 | . . . . . . 1 . . . . . . . . . . Used . | . . . . . . . . . . . . . . . . . Hacking Detections 10 | . . . . . . 1 . . . . . 3 4 . . 2 Full Trace Events . | . . . . . . . . . . . . . . . . . Feedback Events . | . . . . . . . . . . . . . . . . . Feedback Blocked . | . . . . . . . . . . . . . . . . . Robot Schematics Acquired . | . . . . . . . . . . . . . . . . . Robots Built . | . . . . . . . . . . . . . . . . . Authchips . | . . . . . . . . . . . . . . . . . Time . | . . . . . . . . . . . . . . . . . Total Robot Build Rating . | . . . . . . . . . . . . . . . . . Part Schematics Acquired . | . . . . . . . . . . . . . . . . . Parts Built . | . . . . . . . . . . . . . . . . . Authchips . | . . . . . . . . . . . . . . . . . Time . | . . . . . . . . . . . . . . . . . Total Part Build Rating . | . . . . . . . . . . . . . . . . . Part Studies Acquired . | . . . . . . . . . . . . . . . . . Parts Repaired . | . . . . . . . . . . . . . . . . . Time . | . . . . . . . . . . . . . . . . . Parts Recycled . | . . . . . . . . . . . . . . . . . Recycled Matter . | . . . . . . . . . . . . . . . . . Retrieved Matter . | . . . . . . . . . . . . . . . . . Retrieved Components . | . . . . . . . . . . . . . . . . . Parts Scanalyzed . | . . . . . . . . . . . . . . . . . Part Schematics Acquired . | . . . . . . . . . . . . . . . . . Parts Damaged . | . . . . . . . . . . . . . . . . . Bothacking | -11 -10 -10 -10 -9 -8 -7 -7 -7 -7 -5 -5 -4 -3 -2 -2 -1 ------------ Run | Yrd Mat Min Exi Min Mat Fac Sto Rec Scr Fac DSF Fac Res Res DSF Acc Used RIF Installer . | . . . . . . . . . . . . . . . . . Robots Hacked . | . . . . . . . . . . . . . . . . . Non-combat . | . . . . . . . . . . . . . . . . . Combat . | . . . . . . . . . . . . . . . . . Robot Hacks Applied . | . . . . . . . . . . . . . . . . . Relay Couplers Released . | . . . . . . . . . . . . . . . . . Fabnet Peak Effective % . | . . . . . . . . . . . . . . . . . Robots Rewired . | . . . . . . . . . . . . . . . . . Allies Hacked . | . . . . . . . . . . . . . . . . . Hacks Repelled . | . . . . . . . . . . . . . . . . . Allies | -11 -10 -10 -10 -9 -8 -7 -7 -7 -7 -5 -5 -4 -3 -2 -2 -1 -------- Run | Yrd Mat Min Exi Min Mat Fac Sto Rec Scr Fac DSF Fac Res Res DSF Acc Total Allies 3 | . . . . . . . . . . . . . 3 . . . Largest Group 3 | . . . . . . . . . . . . . 3 . . . Highest-Rated Group 141 | . . . . . . . . . . . . . 141 . . . Highest-Rated Ally 47 | . . . . . . . . . . . . . 47 . . . Total Orders 1 | . . . . . . . . . . . . . . . . 1 EXPLORE 1 | . . . . . . . . . . . . . . . . 1 Ally Attacks 28 | . . . . . . . . . . . . . 28 . . . Total Damage 712 | . . . . . . . . . . . . . 712 . . . Kills 5 | . . . . . . . . . . . . . 5 . . . Allies Corrupted . | . . . . . . . . . . . . . . . . . Allies Melted . | . . . . . . . . . . . . . . . . . Intel | -11 -10 -10 -10 -9 -8 -7 -7 -7 -7 -5 -5 -4 -3 -2 -2 -1 ------- Run | Yrd Mat Min Exi Min Mat Fac Sto Rec Scr Fac DSF Fac Res Res DSF Acc Active Infowar (turns) 2285 | . . . . . . 107 124 293 324 95 46 270 561 3 60 402 Optics 1838 | . . . . . . . . 77 324 95 46 270 561 3 60 402 Sensors 1 | . . . . . . . . . . . . 1 . . . . Terrain 1105 | . . . . . . 107 27 . . . . 232 561 3 60 115 Machine Analysis 2269 | . . . . . . 91 124 293 324 95 46 270 561 3 60 402 Robot Analysis Total . | . . . . . . . . . . . . . . . . . Derelict Logs Recovered 2 | . . 1 . 1 . . . . . . . . . . . . Drone Launches 1 | . . . . . . . . . . . . . . . . 1 Drone Recoveries . | . . . . . . . . . . . . . . . . . Exploration | -11 -10 -10 -10 -9 -8 -7 -7 -7 -7 -5 -5 -4 -3 -2 -2 -1 ------------- Run | Yrd Mat Min Exi Min Mat Fac Sto Rec Scr Fac DSF Fac Res Res DSF Acc Turns Passed 3078 | 27 79 131 104 42 272 245 124 293 324 95 46 270 561 3 60 402 Spaces Moved 4641 | 44 112 261 205 62 358 341 202 460 636 96 74 431 756 5 82 516 Core 4641 | 44 112 261 205 62 358 341 202 460 636 96 74 431 756 5 82 516 Treads . | . . . . . . . . . . . . . . . . . Legs . | . . . . . . . . . . . . . . . . . Wheels . | . . . . . . . . . . . . . . . . . Hover . | . . . . . . . . . . . . . . . . . Flight . | . . . . . . . . . . . . . . . . . Fastest Speed 50 | 50 50 50 50 50 50 50 50 50 50 50 50 50 50 50 50 50 Average Speed 50 | 50 50 50 50 50 50 50 50 50 50 50 50 50 50 50 50 51 Slowest Speed 200 | 50 50 50 50 50 100 50 50 150 50 50 50 50 100 50 100 200 Overloaded Moves . | . . . . . . . . . . . . . . . . . Propulsion Burnouts . | . . . . . . . . . . . . . . . . . Robots Hopped . | . . . . . . . . . . . . . . . . . Potential Cave-ins 7 | . . . . . . . . . . . . . 4 . . 3 Cave-ins Triggered . | . . . . . . . . . . . . . . . . . Exploration Rate (%) 40 | 3 33 73 60 20 35 12 49 90 56 5 75 18 25 . 66 22 Regions Visited 16 Branch Regions 6 Pre-discovered Areas 2 | . . . 1 1 . . . . . . . . . . . . Known Exits Taken 9 | . . . . . 1 1 1 1 1 1 . 1 1 1 . . Unknown Exits Taken 5 | 1 1 1 1 1 . . . . . . . . . . . . Scrap Searched 10 | . . 1 . 1 . . . . 8 . . . . . . . Spaces Dug 62 | . . . . . 1 7 3 9 . 4 . 8 21 . . 9 Terrain Destroyed 131 | . . . . . 2 7 3 14 . 4 . 8 23 . . 70 Melee 52 | . . . . . . 6 3 7 . 4 . 8 17 . . 7 Projectile 19 | . . . . . 2 1 . 7 . . . . 6 . . 3 AOE 60 | . . . . . . . . . . . . . . . . 60 Terrain Rammed . | . . . . . . . . . . . . . . . . . Walls Destroyed . | . . . . . . . . . . . . . . . . . Machines Disabled . | . . . . . . . . . . . . . . . . . Actions | -11 -10 -10 -10 -9 -8 -7 -7 -7 -7 -5 -5 -4 -3 -2 -2 -1 --------- Run | Yrd Mat Min Exi Min Mat Fac Sto Rec Scr Fac DSF Fac Res Res DSF Acc Total 5176 | 48 121 260 205 67 428 388 216 489 640 137 82 461 898 4 100 632 Wait 180 | . 1 . . . 35 11 5 . . 20 . . 71 . 2 35 Move 4625 | 43 111 260 204 61 357 340 201 459 635 95 73 430 755 4 81 516 Hop . | . . . . . . . . . . . . . . . . . Pick Up 14 | 3 . . 1 1 4 2 2 . . . . . 1 . . . Fast Attach 34 | . . . . . 3 7 2 3 2 2 . 9 5 . . 1 Attach 25 | 2 1 . . . 3 3 . 2 . . . . 3 . . 11 Detach 22 | . . . . . 2 2 . 2 . . . 1 4 . 1 10 Swap 4 | . . . . . 1 1 . . 1 . . 1 . . . . Drop 16 | . . . . . 2 2 1 1 2 1 . 1 4 . 1 1 Fire 73 | . 8 . . 5 21 11 . 8 . . . . 8 . . 12 Melee 93 | . . . . . . 9 5 14 . 4 . 19 32 . . 10 Ram 8 | . . . . . . . . . . . . . . . . 8 Kick . | . . . . . . . . . . . . . . . . . Crush . | . . . . . . . . . . . . . . . . . Escape Stasis 73 | . . . . . . . . . . 15 . . 15 . 15 28 Rewire . | . . . . . . . . . . . . . . . . . Trap 9 | . . . . . . . . . . . 9 . . . . . Miscellaneous . | . . . . . . . . . . . . . . . . . Route ------- -11/Scrapyard -10/Materials -10/Mines (discovered 3 exits: *Mat x2 / *Exi) -10/Exiles -9/Mines -8/Materials (discovered 3 exits: *Fac x3) -7/Factory -7/Storage -7/Recycling (discovered 2 exits: *Fac / *Scr) -7/Scraptown -5/Factory -5/DSF -4/Factory (discovered 7 exits: *Res x4 / Upp x2 / Arm) -3/Research (discovered 5 exits: *Res x3 / *Tes x2) -2/Research -2/DSF -1/Access History --------- Turn | Location | Event 12 | -11/Scrapyard | Discovered new exit (range 15) 28 | -11/Scrapyard | Entered Materials 97 | -10/Materials | Discovered new exit (range 16) 107 | -10/Materials | Entered Mines 112 | -10/Mines | Discovered new exit (range 5) 116 | -10/Mines | Identified exit to Materials 125 | -10/Mines | Assembled infested the area 236 | -10/Mines | Deemed a non-threat by the Exiles lab entrance 236 | -10/Mines | Discovered new exit (range 5) 238 | -10/Mines | Entered Exiles 250 | -10/Exiles | Met 8R-AWN 259 | -10/Exiles | Met EX-HEX 273 | -10/Exiles | Met EX-BIN 279 | -10/Exiles | Aligned with FarCom system 279 | -10/Exiles | Given EX-Vault access code 291 | -10/Exiles | Opened EX-Vault 295 | -10/Exiles | Found Supersonic Drone Bay 305 | -10/Exiles | Warned to stay clear of 0b10 Research branches 310 | -10/Exiles | Build established: Mutant 320 | -10/Exiles | Met EX-DEC 322 | -10/Exiles | Learned location of Zion (-7) 338 | -10/Exiles | Discovered new exit (range 10) 342 | -10/Exiles | Left Exiles lab with Supersonic Drone Bay 342 | -10/Exiles | Entered Mines 381 | -9/Mines | Discovered new exit (range 5) 384 | -9/Mines | Entered Materials 384 | -8/Materials | Evolved 4 slots: Utility x4 416 | -8/Materials | Identified exit to Factory 656 | -8/Materials | Entered Factory 656 | -7/Factory | Evolved 2 slots: Utility x2 890 | -7/Factory | Discovered new exit (range 8) 901 | -7/Factory | Identified exit to Storage 901 | -7/Factory | Entered Storage 978 | -7/Storage | Core integrity fell below 50% 1023 | -7/Storage | Used back door to open Recycling access 1023 | -7/Storage | Discovered new exit (range 5) 1025 | -7/Storage | Identified exit to Recycling 1025 | -7/Storage | Entered Recycling 1174 | -7/Recycling | Discovered new exit (range 14) 1234 | -7/Recycling | Build established: Hacker-Mutant 1306 | -7/Recycling | Scanned before Scraplab entrance 1313 | -7/Recycling | Entered Scraplab 1317 | -7/Recycling | Discovered new exit (range 2) 1317 | -7/Recycling | Identified exit to Scraptown 1318 | -7/Recycling | Entered Scraptown 1419 | -7/Scraptown | Discovered new exit (range 13) 1432 | -7/Scraptown | Visited Spacefarers 1445 | -7/Scraptown | Visited Fellowship of the Rings 1524 | -7/Scraptown | Visited Awakened 1532 | -7/Scraptown | Visited Cave Peace 1548 | -7/Scraptown | Visited Bundlers 1598 | -7/Scraptown | Visited Cyclists 1611 | -7/Scraptown | Turned away by UFD registrar 1641 | -7/Scraptown | Identified exit to Factory 1642 | -7/Scraptown | Entered Factory 1642 | -5/Factory | Evolved 4 slots: Utility x4 1737 | -5/Factory | Identified exit to DSF 1737 | -5/Factory | Entered DSF 1774 | -5/DSF | Discovered new exit (range 20) 1775 | -5/DSF | Additional patrols routed to DSF 1783 | -5/DSF | Identified exit to Factory 1783 | -5/DSF | Entered Factory 1783 | -4/Factory | Evolved 2 slots: Utility x2 2021 | -4/Factory | Identified exit to Research 2021 | -4/Factory | Identified exit to Upper Caves 2021 | -4/Factory | Identified exit to Armory 2024 | -4/Factory | Allied Derelicts emerged from ambush trap array 2053 | -4/Factory | Entered Research 2053 | -3/Research | Evolved 2 slots: Utility x2 2156 | -3/Research | Identified exit to Testing 2207 | -3/Research | Build established: Wizard-Scout 2447 | -3/Research | Garrison activated, responded to threat 2576 | -3/Research | Identified exit to Research 2614 | -3/Research | Entered another Research area 2614 | -2/Research | Evolved 2 slots: Utility x2 2616 | -2/Research | Identified exit to DSF 2617 | -2/Research | Entered DSF 2667 | -2/DSF | Discovered new exit (range 19) 2674 | -2/DSF | Additional patrols routed to DSF 2676 | -2/DSF | Identified exit to Access 2677 | -2/DSF | Entered Access 2677 | -1/Access | Evolved 2 slots: Utility x2 2897 | -1/Access | Lost 4 parts (4u) 2991 | -1/Access | Core integrity fell below 50% 3015 | -1/Access | Core integrity fell below 20% 3040 | -1/Access | Lost 5 parts (4u1w) 3044 | -1/Access | Spotted B-99 Colossus 3079 | -1/Access | Destroyed by H-88 Terminator with KE Penetrator Last Messages --------------- Terminal x1 Penetrated by Slug. Slug penetrates Wall. Penetrated by Slug. K-01 Serf destroyed. Penetrated by Slug. Slug penetrates Wall. >> Machine Analyzer network decryption results: Scanalyzer x1 System corrupted: Component data lost. ALERT: Potential suspicious activity detected, Programmers report to Access Zone 3R. Slug penetrates Sealed Freight Elevator. >> Machine Analyzer network decryption results: Terminal x1 >> Machine Analyzer network decryption results: Fabricator x3 Slug penetrates Wall. System corrupted: Component data lost. Slug penetrates Wall. Map ----- +----------------------------------------------------+ | ????????????????????????????????????""?# """"" | | ???????????????????????????????????????# """"" | | ???????????????????????????????????????# """"" | | ???????????????????????????#+####+####?# """"" | | ???????????????????????????# #?# """"" | | ???????????????????????????# #?# """"" | | ???????????????????????????# #?# | | ??????#########????????????# #?# | | ??????# ?############ #?#####+##### | | ??????# # #?????# #???? | | ??????# ] # ####### #???? | | ??????# + ## #### | | ??????# # """"" | | ??????# ! # """"" h | | ??????# ?# "" F" | | ??????# ! ?# h | | ??????########??# ]]/ | | ????????????????# ]// | | ?????#########??# ################# ]/ | | ###### "#?# #?# ## | | ""## #?# = ## | | ### k ## | | " + w "" ## "" | | * ### "" ## "T | | #########?# """""" # "" | | ###### #?????????# @ """""" ??? | | ?????####+####?????????# "" # | | ??????? ???????????# "" * # | | ?????# ]?????????# # ####+##### | | ?????# " #????????# # ?????????? | | ?????# """ #????????#] # ?????????? | | ?????# """ #????????##############????????????? | | ?????# " #??????????????????????????????????? | | ?????# #??????????????????????????????????? | | ?????# #??????????"""""???????????????????? | | ?????# #?????????""""""""?????????????????? | | ?????##########?????????""""""""?????????????????? | | ?????????????????????????"""""???????????????????? | | ???????????????????????????o?????????????????????? | | ?????????????????????????????????????????????????? | | ?????????????????????????????????????????????????? | | ?????????????????????????????????????????????????? | | ?????????????????????????????????????????????????? | | ?????????????????????????????????????????????????? | | ?????????????????????????????????????????????????? | | ?????????????????????????????????????????????????? | | ?????????????????????????????????????????????????? | | ?????????????????????????????????????????????????? | | ???????????????????????????????"""?"""???????????? | | ???????????????????????????????"""T"""???????????? | +----------------------------------------------------+ Best States ------------- Heat Dissipation 52 Energy Generation 14 Energy Capacity 800 Matter Stores 300 Matter Capacity 300 Sight Range 20 Terrain Scan Range 20 Terrain Scan Density 410 Additional Mass Support 9 Evasion (%) 50 Targeting Accuracy 8 Launcher Accuracy 40 Core Analysis 6 Armor Integrity Analysis 30 Offensive Hacking 42 Defensive Hacking 30 Item Schematics ----------------- None Robot Schematics ------------------ None Fabricated ------------ Nothing Repaired ---------- Nothing Studied --------- None Alien Tech Used ----------------- None Achievements -------------- None Challenges ------------ None Game ------ Seed GravjetImprovedActivator Manual? 0 Play Time 00:45:52 Cumulative 572.0 hours Start 2026.08.22 @ 22:16:27 End 2026.08.22 @ 23:01:17 Sessions 1 Manual Loads 0 Difficulty Rogue Special Mode None Game No. 322 Rogue 322 Adventurer 0 Explorer 0 Win Type - Total 37 Types 18/2/7/2/1/1/1/2/1/2 Lore% 97 Gallery% 92 Achievement% 88 Wizard Run 0 Options --------- Layout 1 ASCII 0 Keyboard 0 Movement Numpad Keybinds 0 Fullscreen 1 Font 24/Proggy Map View 50x35 Zoom Use 0% Tactical HUD 0 Map Filters NONE Filters NONE Steam 1 RUN: f0dab140-0f7d-443c-be75-3bbf8418931d